fUSD/lending_fUSD_20250402
["ID","MTS","AMOUNT","RATE_DAILY","PERIOD"]
[357043069,1743618992114,1295.00412018,0.00034687,120]
[357043070,1743619021614,22034.62334092,0.0001485,2]
[357043071,1743619023739,151.0,0.00034687,30]
[357043072,1743619024396,151.0,0.00034687,30]
[357043073,1743619027043,-168.48,0.000149,2]
[357043074,1743619027668,500.0,0.00034687,30]
[357043075,1743619028292,500.0,0.00034687,30]
[357043076,1743619041855,-2.99866795,0.000149,2]
[357043077,1743619041877,-500.0,0.00014973,2]
[357043078,1743619041897,-153.79694517,0.00014973,2]
[357043079,1743619041917,-500.0,0.00014973,2]
[357043080,1743619041938,-5563.65273346,0.00014975,2]
[357043081,1743619041958,-150.0,0.00014988,2]
[357043082,1743619041978,-150.0,0.00014999,2]
[357043083,1743619041999,-168.48,0.00014999,2]
[357043084,1743619042021,-84693.07165342,0.00015,2]
[357043085,1743619049120,178.70113,0.00015,13]
[357043088,1743619107856,161.79,0.00028847,120]
[357043089,1743619110172,588.628,0.000147,2]
[357043090,1743619110208,176.57851011,0.000147,2]
[357043092,1743619192296,-150.0,0.00014999,2]
[357043093,1743619192319,-500.0,0.00014999,2]
[357043094,1743619192340,-500.0,0.00014999,2]
[357043095,1743619192362,-500.0,0.00014999,2]
[357043096,1743619192385,-500.0,0.00014999,2]
[357043097,1743619192408,-500.0,0.00014999,2]
[357043098,1743619192430,-500.0,0.00014999,2]
[357043099,1743619192452,-500.0,0.00014999,2]
[357043100,1743619192477,-343.1381608,0.00014999,2]
[357043101,1743619192504,-722245.8618392,0.00015,2]
[357043102,1743619233077,-300.0,0.00014999,2]
[357043103,1743619233102,-310588.0,0.00015,2]
[357043104,1743619240116,-202.59119274,0.000149,2]
[357043105,1743619261216,-794.06844185,0.000149,2]
[357043106,1743619261238,-500.0,0.00014999,2]
[357043107,1743619261259,-500.0,0.00014999,2]
[357043108,1743619261281,-537.5427209,0.00014999,2]
[357043109,1743619261308,-718537.38883725,0.00015,2]
[357043110,1743619291163,-300.0,0.00014999,2]
[357043111,1743619291184,-189.820089,0.00014999,2]
[357043112,1743619291209,-587902.179911,0.00015,2]
[357043114,1743619323707,-300.0,0.00014999,2]
[357043115,1743619323734,-202701.55420132,0.00015,2]
[357043116,1743619323757,-503938.44579868,0.00015,2]
[357043117,1743619326145,221.39128059,0.00034685,30]
[357043118,1743619329336,364.76236522,0.00014661,2]
[357043119,1743619354492,178.70113,0.0001735,18]
[357043137,1743619506764,171.78,0.00024797,20]
[357043138,1743619521200,-150.0,0.00014899,2]
[357043139,1743619561648,350.0,0.00014944,12]
[357043140,1743619605144,-3986.24136457,0.0001499,2]
[357043141,1743619616456,1000.0,0.00034688,30]
[357043142,1743619632102,-169.17252407,0.00014899,2]
[357043143,1743619641096,-20.97856577,0.00014899,2]
[357043144,1743619641120,-300.0,0.00014989,2]
[357043145,1743619641142,-575.85984884,0.0001499,2]
[357043146,1743619653134,-518.92472965,0.00014989,2]
[357043147,1743619653157,-558.80023153,0.00014989,2]
[357043148,1743619653179,-500.0,0.00014989,2]
[357043149,1743619653206,-5514.41449565,0.0001499,2]
[357043150,1743619681756,350.0,0.00014995,12]
[357043152,1743619756084,-300.0,0.00014989,2]
[357043153,1743619756107,-638.86112261,0.0001499,2]
[357043155,1743619764118,-9595.04518655,0.0001499,2]
[357043156,1743619832091,-863.32,0.0001499,2]
[357043157,1743619832278,-115.15447123,0.0001499,2]
[357043158,1743619832296,-4417.06336276,0.0001499,2]
[357043174,1743619838113,-15.50957037,0.0001499,2]
[357043175,1743619838125,-12000.00000135,0.0001499,2]
[357043176,1743619838140,-1253.8347995,0.0001499,2]
[357043177,1743619838255,-115.91913668,0.0001499,2]
[357043178,1743619838410,-5647.74948009,0.0001499,2]
[357043180,1743619838419,-150.0,0.00014995,2]
[357043182,1743619838429,-126894.73191164,0.00015,2]
[357043184,1743619838439,-18764.0188764,0.00015017,2]
[357043186,1743619838448,-8284.4258606,0.00015017,2]
[357043188,1743619838457,-16224.59545603,0.00015027,2]
[357043190,1743619838466,-172.44,0.00015507,2]
[357043192,1743619838476,-350.0,0.00016389,12]
[357043194,1743619838485,-350.0,0.00016489,12]
[357043196,1743619838494,-150.0,0.00016489,2]
[357043198,1743619838504,-350.0,0.00016489,12]
[357043200,1743619838513,-150.0,0.00016489,2]
[357043202,1743619838522,-257.31,0.00018533,2]
[357043204,1743619838531,-150.99,0.00018533,2]
[357043206,1743619838540,-299.99,0.00018533,4]
[357043208,1743619838550,-457.11,0.00018533,2]
[357043210,1743619838559,-150.99,0.00018533,2]
[357043212,1743619838569,-6448.93,0.00018533,2]
[357043214,1743619838578,-16224.59545599,0.00018735,2]
[357043216,1743619838588,-207.11068127,0.00019,2]
[357043218,1743619838597,-9024.62978421,0.00019,2]
[357043220,1743619838607,-224.98659205,0.00019,2]
[357043222,1743619838615,-161.79,0.00019231,2]
[357043224,1743619838625,-3694.5,0.00019409,2]
[357043226,1743619838634,-23900.0,0.00019525,2]
[357043228,1743619838644,-30484.72032272,0.00019999,2]
[357043230,1743619838654,-2032.71230359,0.0002,2]
[357043232,1743619838666,-1251.30010113,0.0002,5]
[357043234,1743619838675,-1013.0,0.0002,6]
[357043236,1743619838684,-250.0,0.0002027,2]
[357043238,1743619838693,-200.0,0.00020618,2]
[357043240,1743619838703,-1748.18,0.00021162,2]
[357043242,1743619838712,-890.88,0.00021793,2]
[357043244,1743619838720,-500.0,0.000221,2]
[357043246,1743619838729,-319.05841768,0.000221,2]
[357043248,1743619838739,-181.34053378,0.000221,2]
[357043249,1743619838749,-160.60405449,0.000221,2]
[357043252,1743619838758,-482.26619861,0.000221,2]
[357043254,1743619838770,-500.0,0.000221,2]
[357043256,1743619838779,-250.0,0.00022106,2]
[357043257,1743619838788,-152.95,0.00022344,2]
[357043259,1743619838803,-16224.59545599,0.00022443,2]
[357043261,1743619838821,-440.59,0.00022476,2]
[357043263,1743619838832,-163.36,0.00023158,2]
[357043265,1743619838841,-172.44,0.0002326,2]
[357043267,1743619838851,-36883.82,0.00023467,2]
[357043269,1743619838860,-270.31,0.00024297,2]
[357043271,1743619838869,-500.0,0.00024822,2]
[357043273,1743619838879,-500.0,0.0002485,2]
[357043275,1743619838888,-151.0,0.000249,7]
[357043277,1743619838897,-791.62619659,0.00025691,2]
[357043279,1743619838906,-151.0,0.00026027,2]
[357043281,1743619838915,-16224.59545599,0.00026151,2]
[357043283,1743619838925,-156.587,0.00026575,2]
[357043285,1743619838934,-241.05,0.00026849,2]
[357043287,1743619838943,-156.23,0.00026849,2]
[357043289,1743619838952,-250.0,0.00027,2]
[357043291,1743619838961,-162.380719,0.00027123,2]
[357043293,1743619838971,-499.31236529,0.00027579,5]
[357043294,1743619838980,-1000.0,0.00027579,2]
[357043296,1743619838991,-168.3888056,0.00027671,2]
[357043297,1743619839000,-5376.69774694,0.00028,2]
[357043298,1743619839009,-267.6434754,0.00028219,2]
[357043299,1743619839019,-500.0,0.00028418,2]
[357043300,1743619839028,-163.95839373,0.00028418,5]
[357043301,1743619839037,-152.94080743,0.00028418,5]
[357043302,1743619839047,-300.0,0.00029,2]
[357043303,1743619839056,-16224.59545599,0.00029859,2]
[357043304,1743619839066,-500.0,0.00029973,2]
[357043305,1743619839076,-3518.50056276,0.0003,2]
[357043306,1743619839085,-498.37062997,0.00030329,5]
[357043307,1743619839094,-67163.43699164,0.000306,2]
[357043308,1743619840243,-49.02872757,0.000306,2]
[357043309,1743619840281,-1411.32248693,0.000306,2]
[357043310,1743619840293,-1695.21179386,0.000306,2]
[357043311,1743619840303,-350.0,0.00031,2]
[357043312,1743619840312,-5554.0,0.000316,3]
[357043313,1743619840323,-202.59119274,0.00032336,2]
[357043314,1743619840334,-155.405893,0.000324,3]
[357043315,1743619840345,-5554.0,0.000326,5]
[357043316,1743619840356,-241.05,0.00032646,2]
[357043317,1743619840367,-158.215662,0.00032885,2]
[357043318,1743619840376,-400.0,0.00033,2]
[357043319,1743619840387,-156.23,0.00033328,2]
[357043320,1743619840398,-16224.59545599,0.00033568,2]
[357043321,1743619840407,-618.11885499,0.00033898,2]
[357043322,1743619840416,-150.0,0.00034548,10]
[357043323,1743619840426,-10056.7916845,0.00034677,2]
[357043324,1743619840435,-151.39,0.00034678,2]
[357043325,1743619840444,-150.0,0.00034685,2]
[357043326,1743619840454,-151.0,0.00034685,7]
[357043327,1743619840463,-151.0,0.00034685,7]
[357043328,1743619840472,-159.469998,0.00034685,7]
[357043329,1743619840481,-159.469998,0.00034685,7]
[357043330,1743619840490,-152.456959,0.00034687,7]
[357043331,1743619840500,-12547.9807,0.00034688,2]
[357043332,1743619840508,-13194.97025546,0.00034688,2]
[357043333,1743619840518,-774.93463317,0.00034688,2]
[357043334,1743619840527,-26341.16568976,0.00034688,2]
[357043335,1743619840535,-4500.6139552,0.00034688,2]
[357043336,1743619840544,-1830.52568432,0.00034688,2]
[357043337,1743619840553,-1113.85692446,0.00034688,2]
[357043338,1743619840563,-14016.62970539,0.00034688,2]
[357043339,1743619840571,-219.55812226,0.00034688,2]
[357043340,1743619840580,-10163.33905741,0.00034688,2]
[357043341,1743619840589,-8115.49760594,0.00034688,2]
[357043342,1743619840599,-1699.78786418,0.00034688,2]
[357043343,1743619840608,-1425.68503621,0.00034688,2]
[357043344,1743619840617,-202.02337148,0.00034688,2]
[357043345,1743619840626,-281.6475134,0.00034688,2]
[357043346,1743619840635,-5662.4988337,0.00034688,2]
[357043347,1743619840644,-748.96889339,0.00034688,2]
[357043348,1743619840655,-1009.59897845,0.00034688,2]
[357043349,1743619840665,-162.91,0.00034688,2]
[357043350,1743619840673,-1102.56924828,0.00034688,2]
[357043352,1743619840683,-161.10722204,0.00034688,2]
[357043353,1743619840691,-2165.00385667,0.00034688,2]
[357043354,1743619840702,-150.0,0.00034688,2]
[357043355,1743619840711,-304.91833514,0.00034688,2]
[357043356,1743619840720,-300.482922,0.000347,7]
[357043357,1743619840731,-450.0,0.00035,2]
[357043359,1743619840740,-166.45,0.00035,2]
[357043361,1743619840749,-573.5594448,0.00035888,5]
[357043363,1743619840758,-500.0,0.00035888,5]
[357043365,1743619840767,-318.0,0.0003645,5]
[357043367,1743619840776,-500.0,0.00037,2]
[357043369,1743619840785,-151.0,0.00037,7]
[357043370,1743619840794,-151.0,0.00037,7]
[357043371,1743619840805,-10056.7916845,0.00037266,3]
[357043372,1743619840814,-16224.59545599,0.00037276,2]
[357043373,1743619840824,-241.05,0.00038443,2]
[357043374,1743619840833,-588.628,0.00038525,52]
[357043375,1743619840843,-550.0,0.00039,2]
[357043376,1743619840852,-405.0,0.00039342,2]
[357043377,1743619840861,-156.23,0.00039807,2]
[357043379,1743619840871,-1126.52182167,0.0003986,3]
[357043380,1743619840880,-10056.7916845,0.0003987,3]
[357043381,1743619840890,-6627.19858961,0.0003988,2]
[357043382,1743619840899,-158.215662,0.000399,119]
[357043389,1743619840988,-455.58544443,0.0004,60]
[357043392,1743619841010,-158.215662,0.0004,3]
[357043394,1743619841020,-200.0,0.0004,120]
[357043396,1743619841029,-10056.7916845,0.00040974,3]
[357043398,1743619841038,-9212.54039848,0.00040984,15]
[357043401,1743619841078,-93.55069113,0.00040984,15]
[357043402,1743619841089,-900.72,0.00040984,15]
[357043403,1743619841115,-6017.78436638,0.00040984,15]
[357043404,1743619841124,-1126.52182167,0.0004099,3]
[357043405,1743619841133,-600.0,0.00041,2]
[357043406,1743619841142,-173.0,0.00041,14]
[357043407,1743619841152,-153.31,0.00041096,60]
[357043408,1743619841161,-1000.0,0.00041367,10]
[357043409,1743619841170,-1226.61536912,0.00041855,2]
[357043410,1743619841179,-650.0,0.00043,2]
[357043411,1743619841188,-10026.0,0.00043503,2]
[357043412,1743619841197,-158.215662,0.0004357,119]
[357043413,1743619841207,-226.8821,0.00043888,7]
[357043414,1743619841216,-150.0,0.00044,120]
[357043415,1743619841225,-1004.87346265,0.00044128,2]
[357043416,1743619841235,-241.05,0.00044239,2]
[357043417,1743619841246,-1012.11,0.00044606,2]
[357043418,1743619841256,-10056.7916845,0.00044682,3]
[357043419,1743619841267,-7921.50943616,0.00044692,15]
[357043420,1743619841279,-724.4403584,0.00044692,15]
[357043421,1743619841323,-7578.64566143,0.00044692,15]
[357043422,1743619841333,-300.0,0.000449,16]
[357043423,1743619841342,-158.215662,0.00044964,3]
[357043424,1743619841354,-700.0,0.00045,2]
[357043425,1743619841363,-325.6794331,0.00045801,2]
[357043426,1743619841373,-855.12294336,0.00045878,120]
[357043427,1743619841384,-1126.52182167,0.00045992,3]
[357043428,1743619841393,-187.16,0.00046002,120]
[357043429,1743619841407,-10056.7916845,0.00046085,3]
[357043430,1743619841416,-156.23,0.00046285,2]
[357043431,1743619841426,-150.6,0.00046291,2]
[357043432,1743619841436,-10056.7916845,0.00046423,3]
[357043433,1743619841445,-1126.52182167,0.00046423,3]
[357043434,1743619841455,-1284.0,0.00046433,2]
[357043435,1743619841465,-2041.0,0.00046433,2]
[357043436,1743619841474,-573.0,0.00046433,2]
[357043437,1743619841485,-347.478,0.00046433,2]
[357043438,1743619841495,-1275.0,0.00046433,2]
[357043439,1743619841504,-789.0,0.00046433,2]
[357043440,1743619841515,-4094.0,0.00046433,2]
[357043441,1743619841525,-151.0,0.00046433,2]
[357043442,1743619841535,-3948.0,0.00046433,2]
[357043443,1743619841546,-1118.0,0.00046433,2]
[357043444,1743619841556,-331.43375594,0.00046503,3]
[357043445,1743619841651,-114.00588841,0.00046503,3]
[357043446,1743619841667,-290.46115889,0.00046503,3]
[357043447,1743619841678,-535.99855628,0.00046503,3]
[357043448,1743619841690,-545.7393,0.00046503,3]
[357043449,1743619841701,-516.6712998,0.00046503,3]
[357043450,1743619841712,-498.73369726,0.00046503,3]
[357043451,1743619841821,-0.00167577,0.00046503,3]
[357043452,1743619841834,-552.31242,0.00046503,3]
[357043453,1743619842320,150.0,0.00034688,30]
[357043469,1743619843135,-2027.2122323,0.00046503,3]
[357043486,1743619844306,-442.91570721,0.00046503,3]
[357043487,1743619844318,-325.6,0.00046503,3]
[357043490,1743619846091,-3875.70599264,0.00046503,3]
[357043491,1743619846103,-1126.52182167,0.00046503,3]
[357043492,1743619846112,-12746.54653248,0.00046514,3]
[357043493,1743619846196,-7367.03683642,0.00046514,3]
[357043494,1743619846206,-1126.52182167,0.00046514,3]
[357043495,1743619846216,-157.89,0.00046524,2]
[357043496,1743619846225,-474.47,0.00046524,2]
[357043497,1743619846235,-209.17,0.00046524,2]
[357043498,1743619846244,-200.0,0.00046524,2]
[357043499,1743619846254,-224.19,0.00046524,2]
[357043500,1743619846263,-150.0,0.00046524,2]
[357043501,1743619846272,-1000.0,0.00046524,2]
[357043502,1743619846281,-150.0,0.00046524,7]
[357043503,1743619846291,-1283.52227668,0.00046575,120]
[357043504,1743619846301,-150.08,0.00046578,120]
[357043505,1743619846310,-151.0,0.00046687,14]
[357043506,1743619846319,-151.0,0.00046687,14]
[357043507,1743619846329,-1012.11,0.0004687,2]
[357043508,1743619846338,-2041.9389,0.00046888,30]
[357043509,1743619846347,-750.0,0.00047,2]
[357043510,1743619846357,-613.5631636,0.00047035,4]
[357043511,1743619846366,-184.19,0.00047072,2]
[357043512,1743619846375,-158.215662,0.0004724,119]
[357043513,1743619846384,-600.0,0.000475,17]
[357043514,1743619846393,-900.0,0.000476,17]
[357043515,1743619846402,-1300.0,0.000477,17]
[357043516,1743619846412,-1600.0,0.000478,17]
[357043517,1743619846420,-150.0,0.00047861,7]
[357043519,1743619846430,-150.0,0.00047862,7]
[357043520,1743619846439,-150.0,0.00047862,7]
[357043521,1743619846449,-150.0,0.00047866,7]
[357043522,1743619846459,-150.0,0.00047869,7]
[357043523,1743619846468,-150.0,0.00047869,7]
[357043524,1743619846477,-150.0,0.0004787,7]
[357043526,1743619846486,-150.0,0.00047872,7]
[357043528,1743619846496,-150.0,0.00047878,7]
[357043530,1743619846505,-150.0,0.00047881,7]
[357043531,1743619846514,-150.0,0.00047881,7]
[357043532,1743619846523,-150.0,0.00047886,7]
[357043533,1743619846533,-150.0,0.00047889,7]
[357043534,1743619846543,-10056.7916845,0.00047893,4]
[357043535,1743619846552,-300.0,0.000479,17]
[357043536,1743619846561,-150.0,0.000479,7]
[357043537,1743619846570,-150.0,0.000479,7]
[357043538,1743619846579,-150.0,0.00047901,7]
[357043539,1743619846588,-150.0,0.00047901,7]
[357043540,1743619846597,-150.0,0.00047903,7]
[357043541,1743619846607,-150.0,0.00047906,7]
[357043542,1743619846616,-150.0,0.00047908,7]
[357043543,1743619846625,-150.0,0.00047909,7]
[357043544,1743619846634,-150.0,0.00047912,7]
[357043545,1743619846643,-150.0,0.00047921,7]
[357043546,1743619846653,-150.0,0.00047921,7]
[357043547,1743619846665,-150.0,0.00047926,7]
[357043548,1743619846674,-150.0,0.00047927,7]
[357043549,1743619846684,-1126.52182167,0.00047934,4]
[357043550,1743619846693,-150.0,0.00047941,7]
[357043551,1743619846702,-150.0,0.00047941,7]
[357043552,1743619846713,-150.0,0.00047946,7]
[357043553,1743619846723,-150.0,0.00047948,7]
[357043554,1743619846735,-150.0,0.0004795,7]
[357043555,1743619846745,-150.0,0.00047951,7]
[357043556,1743619846755,-150.0,0.00047953,7]
[357043557,1743619846766,-150.0,0.00047961,7]
[357043558,1743619846776,-150.0,0.00047965,7]
[357043559,1743619846785,-150.0,0.00047969,7]
[357043560,1743619846795,-150.0,0.00047973,7]
[357043561,1743619846805,-150.0,0.00047973,7]
[357043562,1743619846814,-150.0,0.00047976,7]
[357043563,1743619846824,-152.53458628,0.0004798,7]
[357043564,1743619846916,-150.0,0.00047983,7]
[357043565,1743619846926,-20113.5833689,0.0004799,4]
[357043566,1743619846936,-1126.52182167,0.0004799,4]
[357043567,1743619846945,-150.0,0.00047996,7]
[357043568,1743619846954,-150.0,0.00047997,7]
[357043569,1743619846963,-2500.0,0.00048,10]
[357043570,1743619846972,-25000.0,0.00048,2]
[357043571,1743619846981,-196.0,0.00048,120]
[357043572,1743619846990,-159.469998,0.00048,14]
[357043573,1743619847000,-159.469998,0.00048,14]
[357043574,1743619847009,-150.0,0.00048001,7]
[357043575,1743619847018,-150.0,0.00048005,7]
[357043576,1743619847027,-150.0,0.00048006,7]
[357043577,1743619847037,-150.0,0.00048006,7]
[357043578,1743619847046,-150.0,0.00048006,7]
[357043579,1743619847055,-150.0,0.00048015,7]
[357043580,1743619847065,-150.0,0.00048017,7]
[357043581,1743619847074,-150.0,0.00048019,7]
[357043582,1743619847083,-150.0,0.00048021,7]
[357043583,1743619847093,-150.0,0.00048025,7]
[357043584,1743619847103,-150.0,0.00048026,7]
[357043585,1743619847114,-150.0,0.00048026,7]
[357043586,1743619847123,-150.0,0.00048026,7]
[357043587,1743619847133,-150.0,0.0004803,7]
[357043588,1743619847142,-150.0,0.00048034,7]
[357043589,1743619847152,-150.0,0.00048038,7]
[357043590,1743619847162,-300.0,0.00048039,7]
[357043591,1743619847173,-150.0,0.00048041,7]
[357043592,1743619847183,-48.0565457,0.00048043,7]
[357043593,1743619847235,-101.9434543,0.00048043,7]
[357043594,1743619847244,-10.14063868,0.00048044,7]
[357043595,1743619847255,-139.85936132,0.00048044,7]
[357043596,1743619847265,-150.0,0.00048051,7]
[357043597,1743619847274,-143.63926239,0.00048056,7]
[357043598,1743619847286,-6.36073761,0.00048056,7]
[357043599,1743619847295,-150.0,0.00048061,7]
[357043600,1743619847305,-150.0,0.00048064,7]
[357043601,1743619847315,-150.0,0.00048064,7]
[357043602,1743619847324,-150.0,0.00048066,7]
[357043603,1743619847334,-150.0,0.00048067,7]
[357043604,1743619847343,-99.2972717,0.00048068,7]
[357043605,1743619847357,-50.7027283,0.00048068,7]
[357043606,1743619847367,-150.0,0.00048071,7]
[357043607,1743619847376,-150.0,0.00048076,7]
[357043608,1743619847386,-150.0,0.00048077,7]
[357043609,1743619847395,-238.05376215,0.00048082,7]
[357043610,1743619847405,-150.0,0.00048082,7]
[357043611,1743619847414,-150.0,0.00048082,7]
[357043612,1743619847423,-150.0,0.00048082,7]
[357043613,1743619847433,-150.0,0.00048087,7]
[357043614,1743619847443,-150.0,0.00048088,7]
[357043615,1743619847453,-150.0,0.00048089,7]
[357043616,1743619847463,-150.0,0.00048092,7]
[357043617,1743619847472,-150.0,0.00048098,7]
[357043618,1743619847482,-150.0,0.00048101,7]
[357043619,1743619847491,-150.0,0.00048101,7]
[357043620,1743619847501,-150.0,0.00048102,7]
[357043621,1743619847511,-930.8056558,0.00048103,4]
[357043622,1743619847635,-65.78704018,0.00048103,4]
[357043623,1743619847651,-129.92912569,0.00048103,4]
[357043624,1743619847665,-150.0,0.00048104,7]
[357043625,1743619847674,-150.0,0.00048107,7]
[357043626,1743619847684,-150.0,0.00048108,7]
[357043627,1743619847694,-150.0,0.00048108,7]
[357043628,1743619847703,-150.0,0.00048111,7]
[357043629,1743619847713,-150.0,0.00048115,7]
[357043630,1743619847723,-3453.55473592,0.00048116,4]
[357043631,1743619847735,-540.25766701,0.00048116,4]
[357043632,1743619847825,-99.64871268,0.00048116,4]
[357043670,1743620841138,-168.44,0.00026849,2]
[357043671,1743620841159,-350.0,0.00026925,12]
[357043672,1743620841187,-150.0,0.00026925,2]
[357043673,1743620841349,-250.0,0.00027,2]
[357043674,1743620841371,-12.93408803,0.00027,2]
[357043675,1743620852110,-176.4011558,0.00027,2]
[357043676,1743620853111,-548.1994848,0.00027,2]
[357043677,1743620853134,-157.59088073,0.000273,2]
[357043678,1743620853157,-618.98179647,0.000274,2]
[357043679,1743620853191,-350.0,0.00027758,12]
[357043680,1743620853218,-150.0,0.00027758,2]
[357043681,1743620853243,-300.0,0.00029,2]
[357043682,1743620853267,-350.0,0.00029534,12]
[357043683,1743620853291,-150.0,0.00029534,2]
[357043684,1743620853312,-662.16977194,0.00030689,2]
[357043685,1743620853334,-350.0,0.00031,2]
[357043686,1743620853355,-168.44,0.00032646,2]
[357043687,1743620853376,-400.0,0.00033,2]
[357043688,1743620853399,-1398.93366248,0.000335,2]
[357043689,1743620946095,-208.7591093,0.000272,2]
[357043690,1743620946118,-150.0,0.00028163,2]
[357043691,1743620946140,-350.0,0.00029125,12]
[357043692,1743620946161,-150.0,0.00029872,2]
[357043693,1743620946183,-350.0,0.0002992,12]
[357043694,1743620946326,-150.0,0.0002992,2]
[357043695,1743620946348,-208.7591093,0.0003105,2]
[357043696,1743620955113,-350.0,0.00032065,12]
[357043697,1743620955136,-2310.430596,0.00033332,2]
[357043698,1743620955159,-601.06633752,0.000335,2]
[357043699,1743620955180,-400.0,0.00033749,2]
[357043700,1743620955201,-150.081075,0.0003375,2]
[357043701,1743620955221,-708.96363948,0.0003375,10]
[357043703,1743620970086,-2405.48804685,0.0003375,10]
[357043706,1743621032253,-7784.36831367,0.0003375,10]
[357043707,1743621032263,-150.0,0.00034325,2]
[357043708,1743621032273,-157.59088072,0.000348,2]
[357043709,1743621032283,-208.7591093,0.000349,2]
[357043710,1743621032292,-450.0,0.00035,2]
[357043711,1743621032301,-150.0,0.00035015,2]
[357043712,1743621032311,-1499.19691245,0.00035326,2]
[357043713,1743621032320,-400.0,0.00036099,2]
[357043714,1743621032329,-1773.49,0.000361,2]
[357043715,1743621032339,-1743.0,0.000362,2]
[357043716,1743621032349,-432.76862337,0.00036677,2]
[357043717,1743621032358,-500.0,0.00037,2]
[357043718,1743621032368,-350.0,0.00037125,12]
[357043719,1743621032377,-150.0,0.00037125,2]
[357043720,1743621032387,-166.46,0.000372,2]
[357043721,1743621032396,-214.2130226,0.000372,103]
[357043722,1743621032406,-168.44,0.00038443,2]
[357043723,1743621032416,-214.21302257,0.00038525,111]
[357043724,1743621032425,-476.0,0.00038662,5]
[357043725,1743621032435,-1743.0,0.00039,2]
[357043726,1743621032444,-550.0,0.00039,2]
[357043727,1743621032454,-150.081075,0.0004,3]
[357043728,1743621032463,-600.0,0.00041,2]
[357043729,1743621032473,-972.13,0.00041374,2]
[357043730,1743621032482,-214.21302257,0.0004215,120]
[357043731,1743621032491,-113.12422478,0.00042514,2]
[357043732,1743621032511,-427.80000002,0.00042514,2]
[357043733,1743621032527,-398.72035722,0.00042514,2]
[357043734,1743621032542,-60.35541798,0.00042514,2]
[357043735,1743621032551,-650.0,0.00043,2]
[357043736,1743621032561,-576.61718202,0.00043638,2]
[357043742,1743621038193,-395.51281798,0.00043638,2]
[357043743,1743621038203,-186.82,0.00043735,2]
[357043744,1743621038212,-168.44,0.00044239,2]
[357043745,1743621038223,-200.0,0.00044402,2]
[357043746,1743621038232,-5.98001521,0.00044964,3]
[357043785,1743621040385,-144.10105979,0.00044964,3]
[357043786,1743621040394,-182.11064704,0.00045,2]
[357043816,1743621811895,25000.000001,0.00034681,30]
[357043832,1743621993036,-151.0,0.00014925,2]
[357043833,1743621999130,-169.41074647,0.00014925,2]
[357043834,1743622030100,-150.7605137,0.00014999,2]
[357043835,1743622030122,-500.0,0.00014999,2]
[357043836,1743622030143,-206.41101217,0.00014999,2]
[357043837,1743622030168,-5.09794047,0.00014999,2]
[357043838,1743622031231,-150.0,0.00014999,2]
[357043839,1743622041098,-3069.012154,0.00014924,2]
[357043840,1743622041132,-344.90205953,0.00014999,2]
[357043841,1743622041157,-183.29349844,0.00014999,2]
[357043842,1743622041184,-946.94956576,0.00015,2]
[357043843,1743622044150,-25242.4590286,0.00015,2]
[357043848,1743622142898,-181.1410884,0.000149,2]
[357043849,1743622142920,-3.2489116,0.000149,2]
[357043851,1743622166675,-188.23731126,0.000149,2]
[357043852,1743622166698,-13.94358272,0.000149,2]
[357043853,1743622168089,-166.89021712,0.000149,2]
[357043854,1743622168122,-1053.14942807,0.000149,2]